{"text_format":"3","workbook":"xlsx","n_sheets":3,"sheets":["Tabelle1","Tabelle2","Tabelle3"],"read":"whole","date_system":"1900"}

{"sheet":"Tabelle1","index":0,"n_rows":109,"n_cols":4,"rows_kept":109,"merged":[[3,1,3,2],[75,1,75,2],[108,1,108,2]]}
["Budgetberechnung für die nachberufliche Zukunft:"]
[]
["Budget der aktuellen und nachberuflichen Situation",null,null,"Nach der"]
["d.h. nach der Pensionierung","Vor der Pensionierung:",null,"Pensionierung:"]
[null,"Ausgaben","Ausgaben","Ausgaben"]
["Ausgaben:","monatlich","jährlich","jährlich"]
[]
["Wohnkosten mit Mietwohnung"]
["Miete inkl. Parkplätzen netto",0,0,0]
["Nebenkosten für Heizung, Strom, Wasser etc.",0,0,0]
[]
["Wohnkosten mit Haus/Eigentumswohnung"]
["Hypothekarzins / Amortisation",0,0,0]
["Heizungskosten inkl. Kaminfeger / Ölbrennerservice etc",0,0,0]
["Wasser / Abwasser / Kehrichtgebühren",0,0,0]
["Gebäudeversicherung",0,0,0]
["Unterhalt / Reparaturen",0,0,0]
["Garten und Gartenunterhalt",0,0,0]
["Telefon / Radio / TV",0,0,0]
["Elektrizität / Gas",0,0,0]
[]
["Haushaltskosten"]
["Nahrungsmittel und Getränke",0,0,0]
["Reinigungkosten (Putzmittel, Reinigung etc.)",0,0,0]
["Bekleidung und Schuhe",0,0,0]
["Haustiere",0,0,0]
["Gäste (Einladungen) Auswärtsessen und Getränke ",0,0,0]
[]
["Versicherungen und Vorsorge"]
["Krankenkassen, Unfallversicherungskosten",0,0,0]
["Franchise/n",0,0,0]
["Hausrat / Privathaftpflicht",0,0,0]
["Lebensversicherungen",0,0,0]
["AHV-Beiträge für Nichterwerbstätige bis 64/65 Frauen/Männer",0,0,0]
["Einzahlungen in die Vorsorge 3a, Pensionskasse, usw."]
[]
["Mobilität und Kommunikation"]
["Bahn- / Tram-/ Busabonnemente",0,0,0]
["Motorfahrzeugversicherungen (Auto/Motorrad)",0,0,0]
["Steuern inkl. Strassenverkehrsamt, Versicherungen, Club)",0,0,0]
["Unterhalt, Reparaturen, Service, Benzin, Vignetten",0,0,0]
["Amortisation von Fahrzeugen",0,0,0]
[]
["Gesundheit und Wohlbefinden"]
["Arzt, Zahnarzt, Therapien",0,0,0]
["Medikamente",0,0,0]
["Optiker- und Zahnarztkosten",0,0,0]
["Körperpflege und Wohlbefinden wie Sauna, Massagen etc.",0,0,0]
["Coiffeur- und Kosmetikosten",0,0,0]
["Freizeit, Hobby, Bildung"]
["Ausgaben für Hobby Frau:",0,0,0]
["Ausgaben für Hobby Mann:",0,0,0]
["Ferien, Reisen, Ausflüge",0,0,0]
["Bildung, Kurse",0,0,0]
["Mitgliedschaften,Verbandsbeiträge",0,0,0]
["Zeitungen / Zeitschriften, Litertur, Kino-, Konzertbesuche",0,0,0]
["Auslagen, Geschenke für Familie und Freunde ",0,0,0]
["Weitere Auslagen für Mann und/oder Frau",0,0,0]
[]
["Steuern"]
["Staats-, Gemeinde-, Kirchensteuern",0,0,0]
["Direkte Bundessteuern",0,0,0]
["Kapitalsteuer bei Auflösung Säule 3a + Pensionskassen-Kapitalbezug",0,0,0]
[]
["Verschiedenes und Rückstellungen"]
["Rückstellungen für Auto, Möbel, PC etc.",0,0,0]
["Geschenke und Spenden",0,0,0]
["Grössere Anschaffungen/Reparaturen für Wohnung, Haus",0,0,0]
["Unvorhergesehenes Reserve",0,0,0]
["Kreditrückzahlungen / Ratenzahlung / Leasing, Alimente etc.",0,0,0]
["Andere feste Verpflichtungen",0,0,0]
["Weitere noch nicht erwähnte Ausgaben für:",0,0,0]
[]
["TOTAL AUSGABEN",{"$f":"SUM(B9:B72)","v":0},{"$f":"SUM(C9:C72)","v":0},{"$f":"SUM(D9:D72)","v":0}]
[]
[null,"Vor der Pensionierung:",null,"Nachher:"]
["Einnahmen","Einnahmen","Einnahmen","Einnahmen"]
["1. Säule: AHV","monatlich","jährlich","jährlich"]
["AHV-Rente von Singles oder erster Rentenbezüger bei Ehepaaren",0,{"$f":"B79*12","v":0},0]
["AHV-Altersrente Ehemann/Partner (inkl. Splitting und Plafonierung)",0,0,0]
["AHV-Altersrente Ehefrau/Partnerin (inkl. Splitting und Plafonierung)",0,0,0]
["Weitere Rentenansprüche, Ergänzungsleistungen, Zuschüsse",0,0,0]
["Hilflosenentschädigung, IV-Renten, Wittwenrente",0,0,0]
[]
["2. Säule: Berufliche Vorsorge"]
["Pensionskassenrente Ehemann/Partner",0,0,0]
["Pensionskassenrente Ehefrau/Partnerin",0,0,0]
["Überbrückungsrenten bis zum AHV-Alter bei Frühpensionierungen",0,{"$f":"B88*12","v":0},0]
["Weitere wie Lohnfortzahlungen, Wittwen-, Waisenrenten etc.",0,0,0]
[]
["3. Säule: freiwilliges Sparen"]
["Vermögensertrag",0,0,0]
["Versicherungsleistungen, private Rente",0,0,0]
[]
["Diverses"]
["Erwerbseinkommen Partner/in",0,0,0]
["Entschädigung für Nebenerwerb: Honorare, Sitzungsgelder etc.",0,0,0]
["SUVA, Militärversicherung",0,0,0]
["Alimente, Zuwendungen, Kostgelder",0,0,0]
["Miet-, Pachteinnahmen: Zimmer, Wohnung, Haus Garten usw.",0,0,0]
["Weitere Einnahmequellen wie: ",0,0,0]
[]
["   TOTAL EINNAHMEN",{"$f":"SUM(B80:B101)","v":0},0,0]
[]
["TOTAL AUSGABEN",{"$f":"B74","v":0},{"$f":"C74","v":0},0]
[]
["Vermögensverzehr / Vermögenswachstum ",{"$f":"B103-B105","v":0},{"$f":"C103-C105","v":0},0]
[]
["Budget erstellt am: "]

{"sheet":"Tabelle2","index":1,"n_rows":0,"n_cols":0,"rows_kept":0}

{"sheet":"Tabelle3","index":2,"n_rows":0,"n_cols":0,"rows_kept":0}